Cogmind - Beta 13 @@@ ROGUE MODE // 2024.04.04 @ 16:17:10 Player: Bobert Result: Destroyed by JH-8OC(R) with Subdweller Machine Gun Performance ------------- Evolutions (0) 0 Regions Visited (3) 600 Robots Destroyed (8) 40 Value Destroyed (252) 252 Prototype IDs (0) 0 Alien Tech Used (0) 0 Bonus (0) 0 TOTAL SCORE: 892 Bonus ------- None Cogmind --------- Core Integrity 0/250 Matter 290/300 Energy 100/100 System Corruption 0% Temperature Cool (0) Movement Core (1350) Ox26 Location -10/Subcaves Parts ------- > --- POWER (1) -------- (None) > --- PROPULSION (2) --- (None) > --- UTILITY (2) ------ Improved Heat Sink Huge Storage Unit > --- WEAPON (2) ------- (None) > --- INVENTORY (25) --- Light Ion Engine Improved Heat Sink Signal Interpreter Scrap Shield Assault Rifle Rocket Launcher Mining Laser Mining Laser Shock Trap Shock Trap Shock Trap Peak State ------------ > --- POWER ------------ Light Nuclear Core > --- PROPULSION ------- Compact Wheel Compact Wheel > --- UTILITY ---------- Huge Storage Unit Shield Generator > --- WEAPON ----------- Assault Rifle Assault Rifle > --- INVENTORY -------- Light Ion Engine Improved Heat Sink Improved Heat Sink Signal Interpreter Scrap Shield Assault Rifle Rocket Launcher Mining Laser Mining Laser Shock Trap Shock Trap Shock Trap Shock Trap Shock Trap [Rating: 12] Favorites ----------- Power Light Ion Engine Engine Light Ion Engine Power Core Light Nuclear Core Propulsion Compact Wheel Wheel Compact Wheel Utility Huge Storage Unit Device Shield Generator Storage Huge Storage Unit Weapon Assault Rifle Ballistic Gun Assault Rifle Build | -11 -10 -10 -10 ------- Run | Yrd Mat Min Sub Slots Evolved . | . . . . Power . | . . . . Propulsion . | . . . . Utility . | . . . . Weapon . | . . . . Parts Attached 11 | 6 1 3 1 Power 2 | 1 . 1 . Engine 1 | 1 . . . Core 1 | . . 1 . Reactor . | . . . . Propulsion 3 | 2 . 1 . Treads . | . . . . Leg . | . . . . Wheel 3 | 2 . 1 . Hover . | . . . . Flight . | . . . . Utility 4 | 1 1 1 1 Device 2 | . . 1 1 Storage 2 | 1 1 . . Processor . | . . . . Hackware . | . . . . Protection . | . . . . Artifact . | . . . . Weapon 2 | 2 . . . Energy Gun . | . . . . Energy Cannon . | . . . . Ballistic Gun 2 | 2 . . . Ballistic Cannon . | . . . . Launcher . | . . . . Special Weapon . | . . . . Impact Weapon . | . . . . Slashing Weapon . | . . . . Piercing Weapon . | . . . . Special Melee Weapon . | . . . . Unidentified Prototypes . | . . . . Parts Lost 7 | . . 1 6 Power 1 | . . . 1 Propulsion 3 | . . 1 2 Utility 1 | . . . 1 Weapon 2 | . . . 2 Highest Loss Streak 6 | . . 1 6 To Critical Strikes . | . . . . Average Slot Usage (%) 84 | . 85 84 79 Engine 8 | . 14 8 . Core 5 | . . 5 10 Wheel 24 | . 28 24 20 Device 3 | . . 2 12 Storage 14 | . 14 14 14 Ballistic Gun 26 | . 28 28 22 Naked Turns . | . . . . Heaviest Build 91 | 12 87 91 91 Greatest Support 32 | 32 32 32 32 Greatest Overweight (x) 28 | . 2 5 28 Average Overweight (x) 2 | . 1 2 3 Largest Inventory Capacity 25 | 8 25 25 25 Average Capacity 23 | 6 18 25 25 Most Carried 15 | 5 6 14 15 Average Carried 9 | 1 2 10 14 Final Capacity 25 | 8 25 25 25 Final Carried 13 | 1 6 13 12 Class Distribution -------------------- 100% | Mutant Dominant Class ---------------- Mutant | -10/Materials Mutant | -10/Mines Mutant | -10/Subcaves Resources | -11 -10 -10 -10 ----------- Run | Yrd Mat Min Sub Matter Collected 427 | 208 11 208 . Remotely . | . . . . Salvage Created 345 | . 44 258 43 Parts 18 | . 6 11 1 Haulers Intercepted . | . . . . Recyclers Shooed 2 | . . 2 . Parts Field Recycled . | . . . . Retrieved Matter . | . . . . Parts Self-Destructed 2 | . . . 2 Prevented . | . . . . Kills | -11 -10 -10 -10 ------- Run | Yrd Mat Min Sub Combat Hostiles Destroyed 6 | . 1 4 1 Guns 6 | . 1 4 1 Classes Destroyed 3 | . 2 1 . Recycler 1 | . . 1 . Watcher 1 | . 1 . . Grunt 6 | . 1 4 1 Best Kill Streak 2 | . 2 2 1 Combat Bots Only 2 | . 1 2 1 Max Kills in Single Turn 1 | . 1 1 1 Gunslinging . | . . . . Exploded . | . . . . Melee . | . . . . Uniques/NPCs Destroyed . | . . . . Combat | -11 -10 -10 -10 -------- Run | Yrd Mat Min Sub Hostile Shots Fired 66 | . 3 23 40 Missed 16 | . . 7 9 Damage Taken 765 | . 40 170 555 Core 270 | . . 75 195 Absorbed by Shields 117 | . . 55 62 Core Remaining (%) 100 | 100 . . . Volleys Fired 25 | . 2 20 3 Largest 2 | . 2 2 2 Hottest 40 | . 40 40 40 Shots Fired 50 | . 4 40 6 Gun 50 | . 4 40 6 Cannon . | . . . . Launcher . | . . . . Special . | . . . . Kinetic 50 | . 4 40 6 Thermal . | . . . . Explosive . | . . . . Electromagnetic . | . . . . Robot Hit Streak 6 | . 2 6 4 Robot Miss Streak 3 | . 1 3 1 Penetration Max . | . . . . Secondary Targets . | . . . . Shots Hit Robots 30 | . 2 23 5 Core Hits 15 | . 2 11 2 Critical Kills . | . . . . Critical Parts Destroyed . | . . . . Critical Strikes . | . . . . Melee Attacks . | . . . . Impact . | . . . . Slashing . | . . . . Piercing . | . . . . Sneak Attacks . | . . . . Combat Hostiles . | . . . . Follow-up Attacks . | . . . . Damage Inflicted 373 | . 27 286 60 Guns 373 | . 27 286 60 Cannons . | . . . . Explosions . | . . . . Melee . | . . . . Ramming . | . . . . Kinetic 373 | . 27 286 60 Thermal . | . . . . Explosive . | . . . . Electromagnetic . | . . . . Impact . | . . . . Slashing . | . . . . Piercing . | . . . . Highest Corruption . | . . . . Average Corruption . | . . . . Corruption Purged . | . . . . Corruption Blocked . | . . . . Overload Shots . | . . . . Overflow Damage . | . . . . Projectiles . | . . . . Explosions . | . . . . Melee . | . . . . Knockbacks . | . . . . Impact . | . . . . Kinetic . | . . . . Secondary . | . . . . Self-Inflicted Damage . | . . . . Shots . | . . . . Rammed . | . . . . Targets Rammed . | . . . . Kicked . | . . . . Crushed . | . . . . Highest Temperature 24 | . . 24 . Average Temperature 6 | . . 6 . Received Heat Transfer 226 | . 24 121 81 Siege Activations . | . . . . Robots Corrupted . | . . . . Combat Hostiles . | . . . . Parts Fried . | . . . . Impact Corruptions . | . . . . Robots Melted . | . . . . Combat Hostiles . | . . . . Parts Melted . | . . . . Heat Transferred . | . . . . Parts Sabotaged . | . . . . Parts Stolen . | . . . . Parts Stripped . | . . . . Power Chain Reactions . | . . . . Alert | -11 -10 -10 -10 ------- Run | Yrd Mat Min Sub Peak Influence 58 | . 47 58 . Initial 18 | . . 18 . Average 23 | . 17 26 . Maximum Alert Level . | . . . . Low Security (%) 100 | 100 100 100 . Level 1 . | . . . . Level 2 . | . . . . Level 3 . | . . . . Level 4 . | . . . . Level 5 . | . . . . High Security . | . . . . Max Security . | . . . . Squads Dispatched . | . . . . Investigation . | . . . . Extermination . | . . . . Reinforcement . | . . . . Assault . | . . . . Garrison . | . . . . Intercept . | . . . . Searches Triggered . | . . . . Construction Impeded . | . . . . Haulers Reinforced . | . . . . Active Scanning Responses . | . . . . Cargo Convoy Interrupts . | . . . . Stealth | -11 -10 -10 -10 --------- Run | Yrd Mat Min Sub Distress Signals . | . . . . Communications Jammed . | . . . . Distress Signals . | . . . . Times Spotted 19 | . 5 4 10 Peak Tracking Total 7 | . 3 2 7 Tactical Retreats . | . . . . Traps | -11 -10 -10 -10 ------- Run | Yrd Mat Min Sub Traps Triggered . | . . . . Indirectly . | . . . . Trap Hack Attempts . | . . . . Triggered . | . . . . Disarmed . | . . . . Reprogrammed . | . . . . Reused . | . . . . Traps Extracted . | . . . . Installed 2 | . . . 2 Triggered . | . . . . Most Traps Carried 5 | . . 5 5 Machines | -11 -10 -10 -10 ---------- Run | Yrd Mat Min Sub Machines Disabled . | . . . . Max in Single Turn . | . . . . Machines Repaired . | . . . . Machines Dismantled . | . . . . Machines Sabotaged . | . . . . Overloaded Fab Kills . | . . . . Hacking | -11 -10 -10 -10 --------- Run | Yrd Mat Min Sub Machines Accessed 1 | . 1 . . Terminals 1 | . 1 . . Fabricators . | . . . . Repair Stations . | . . . . Recycling Units . | . . . . Scanalyzers . | . . . . Garrison Access . | . . . . Total Hacks 2 | . 2 . . Successful 1 | . 1 . . Failed 1 | . 1 . . Catastrophic . | . . . . Database Lockouts . | . . . . Manual 2 | . 2 . . Terminals 2 | . 2 . . Fabricators . | . . . . Repair Stations . | . . . . Recycling Units . | . . . . Scanalyzers . | . . . . Garrison Access . | . . . . Terminal Hacks . | . . . . Fabricator Hacks . | . . . . Repair Station Hacks . | . . . . Recycling Unit Hacks . | . . . . Scanalyzer . | . . . . Garrison Access Hacks . | . . . . Unauthorized Hacks 1 | . 1 . . Terminals 1 | . 1 . . Botnet 1 | . 1 . . Fabricators . | . . . . Repair Stations . | . . . . Recycling Units . | . . . . Scanalyzers . | . . . . Garrison Access . | . . . . Data Cores Recovered . | . . . . Used . | . . . . Hacking Detections . | . . . . Full Trace Events . | . . . . Feedback Events . | . . . . Feedback Blocked . | . . . . Robot Schematics Acquired . | . . . . Robots Built . | . . . . Authchips . | . . . . Time . | . . . . Total Robot Build Rating . | . . . . Part Schematics Acquired . | . . . . Parts Built . | . . . . Authchips . | . . . . Time . | . . . . Total Part Build Rating . | . . . . Parts Repaired . | . . . . Time . | . . . . Parts Recycled . | . . . . Recycled Matter . | . . . . Retrieved Matter . | . . . . Retrieved Components . | . . . . Parts Scanalyzed . | . . . . Part Schematics Acquired . | . . . . Parts Damaged . | . . . . Bothacking | -11 -10 -10 -10 ------------ Run | Yrd Mat Min Sub Used RIF Installer . | . . . . Robots Hacked . | . . . . Non-combat . | . . . . Combat . | . . . . Robot Hacks Applied . | . . . . Relay Couplers Released . | . . . . Fabnet Peak Effective % . | . . . . Robots Rewired . | . . . . Allies Hacked . | . . . . Hacks Repelled . | . . . . Allies | -11 -10 -10 -10 -------- Run | Yrd Mat Min Sub Total Allies . | . . . . Largest Group . | . . . . Highest-Rated Group . | . . . . Highest-Rated Ally . | . . . . Total Orders . | . . . . Ally Attacks . | . . . . Total Damage . | . . . . Kills . | . . . . Allies Corrupted . | . . . . Allies Melted . | . . . . Intel | -11 -10 -10 -10 ------- Run | Yrd Mat Min Sub Robot Analysis Total . | . . . . Derelict Logs Recovered 1 | . . . 1 Drone Launches . | . . . . Drone Recoveries . | . . . . Exploration | -11 -10 -10 -10 ------------- Run | Yrd Mat Min Sub Turns Passed 866 | 38 136 549 143 Spaces Moved 549 | 30 105 348 66 Core 12 | 9 . . 3 Treads . | . . . . Legs . | . . . . Wheels 537 | 21 105 348 63 Hover . | . . . . Flight . | . . . . Fastest Speed 50 | 50 100 130 130 Average Speed 136 | 85 116 136 187 Slowest Speed 1450 | 100 130 175 1450 Overloaded Moves . | . . . . Propulsion Burnouts . | . . . . Robots Hopped . | . . . . Cave-ins Triggered . | . . . . Exploration Rate (%) 25 | 4 23 66 10 Regions Visited 3 Branch Regions 2 Pre-discovered Areas 1 | . . . 1 Known Exits Taken . | . . . . Unknown Exits Taken 3 | 1 1 1 . Scrap Searched . | . . . . Spaces Dug . | . . . . Terrain Destroyed . | . . . . Melee . | . . . . Projectile . | . . . . AOE . | . . . . Terrain Rammed . | . . . . Walls Destroyed . | . . . . Machines Disabled . | . . . . Actions | -11 -10 -10 -10 --------- Run | Yrd Mat Min Sub Total 623 | 42 116 381 84 Wait 9 | . . . 9 Move 546 | 29 104 347 66 Hop . | . . . . Pick Up 25 | 7 7 10 1 Fast Attach . | . . . . Attach 10 | 6 1 2 1 Detach . | . . . . Swap 1 | . . 1 . Drop 5 | . 2 1 2 Fire 25 | . 2 20 3 Melee . | . . . . Ram . | . . . . Kick . | . . . . Crush . | . . . . Escape Stasis . | . . . . Rewire . | . . . . Trap 2 | . . . 2 Miscellaneous . | . . . . Route ------- -11/Scrapyard -10/Materials -10/Mines -10/Subcaves History --------- Turn | Location | Event 2 | -11/Scrapyard | Met Revision 17 7 | -11/Scrapyard | Discovered new exit (range 16) 39 | -11/Scrapyard | Entered Materials 125 | -10/Materials | Discovered new exit (range 8) 175 | -10/Materials | Entered Mines 269 | -10/Mines | Found a hidden stash of uninstalled traps 287 | -10/Mines | Received a Rocket Launcher from a helpful Derelict 303 | -10/Mines | Build established: Mutant 702 | -10/Mines | Discovered new exit (range 12) 724 | -10/Mines | Entered Subcaves 822 | -10/Subcaves | Ambushed by swarm of Subdwellers 825 | -10/Subcaves | Ambushed by Subdwellers from Twisted Machinery 832 | -10/Subcaves | Core integrity fell below 50% 840 | -10/Subcaves | Core integrity fell below 20% 866 | -10/Subcaves | Lost 6 parts (1p2n1u2w) 867 | -10/Subcaves | Destroyed by JH-8OC(R) with Subdweller Machine Gun Last Messages --------------- 00841_ NS-MBR(O) collects matter. 00841_ IU-8R3(R) destroyed. 00841_ Installed Shock Trap. 00842_ Dropped Shock Trap. 00842_ S6-H6X(R) suffers critical hit (Destroy). 00842_ S6-H6X(R) destroyed. 00845_ HV Slug penetrates Earth. 00845_ NS-MBR(O) collects matter. 00848_ KK-NED(R) suffers critical hit (Destroy). 00848_ KK-NED(R) destroyed. 00848_ C9-YL9(R) destroyed. 00848_ NS-MBR(O) collects matter. 00851_ HV Slug penetrates JH-8OC(R). 00851_ NS-MBR(O) collects matter. 00851_ 03-56S(h) destroyed. 00854_ NS-MBR(O) collects matter. 00857_ Installed Shock Trap. 00858_ NS-MBR(O) collects matter. 00862_ Subatomizers dissect the Sub. Laser, destroying it. 00862_ NS-MBR(O) collects matter. Map ----- +----------------------------------------------------+ | ?????????????????????????????????????????????????? | | ?????????????????????????????????????????????????? | | ?????????????????????????????????????????????????? | | ?????????????????????????????????????????????????? | | ?????????????????????????????????????????????????? | | ?????????????????????????????????????????????????? | | ?????????????????????????????????????????????????? | | ?????????????????????????????????????????????????? | | ?????????????????????????????????????????????????? | | ?????????????????????????????????????????????????? | | ?????????????????????????????????????????????????? | | ?????????????????????????????????????????????????? | | ?????????????????????????????????????????????????? | | ?????????????????????????????????????????????????? | | ?????????????????????????????????????????????????? | | ????????????????????????????##???????????????????# | | ???????????????????????????? #?????#????????##??## | | ???????????????????????????? ##??? #????????# ### | | ???????????????????????##### ##? #???????### | | ??????????????????????##;;*&&;%#;#???????## | | ???????????????###???##;;=!!&!O ########?# | | ???????????;; # ###; & &&/[! #??# | | ??????????? ;;; &R&&! #???## | | ?????????? %!^; % ##???# ## | | ?????????? ^*! * ###### ## | | ?????????? % @#### ## ## ## | | ??????????; #?# ### | | ??????????; #?## # # # | | ??????????? ;;; #??# # # | | ??????????? ## #?## # ###### | | ???????????? ??## ?# # ### # | | ???????????? ????# ?# # | | ???????????? ?????? ?## % | | ???????????????????? ??# ##### # # | | ???????????????????? #?# #???####### | | ??????????????????? ####??# ##?????????## | | ?????????????????? ??????# ???????????# | | ?????????????????? ?????# ??????????? | | ?????????????????? ?????# ?????????? | | ??????????????????????????# ?????????? # | | ?????????????????????????? #### ?????????# #### | | ????????????????????????? ???# ????????? ##??? | | ????????????????????????##????## ????????? #????? | | ????????????????????????????????#????????###?????? | | ?????????????????????????????????????????????????? | | ?????????????????????????????????????????????????? | | ?????????????????????????????????????????????????? | | ?????????????????????????????????????????????????? | | ?????????????????????????????????????????????????? | | ?????????????????????????????????????????????????? | +----------------------------------------------------+ Best States ------------- Heat Dissipation 39 Energy Generation 14 Energy Capacity 160 Matter Stores 300 Matter Capacity 300 Sight Range 16 Terrain Scan Density 10 Evasion (%) 50 Item Schematics ----------------- None Robot Schematics ------------------ None Fabricated ------------ Nothing Alien Tech Used ----------------- None Achievements -------------- None Challenges ------------ None Game ------ Seed MyomerRagnarokWell Manual? 0 Play Time 00:08:54 Cumulative 17.1 hours Start 2024.04.04 @ 16:06:53 End 2024.04.04 @ 16:17:10 Sessions 1 Manual Loads 0 Difficulty Rogue Special Mode None Game No. 25 Rogue 25 Adventurer 0 Explorer 0 Win Type - Total 0 Types 0/0/0/0/0/0/0/0/0 Lore% 22 Gallery% 24 Achievement% 20 Wizard Run 0 Options --------- Layout 0 ASCII 0 Keyboard 0 Movement Mouse Keybinds 0 Fullscreen 1 Font 18/SmallcapsGlow Map View 38x25 Zoom Use 100% Tactical HUD 1 Map Filters NONE Filters NONE Steam 1 RUN: 47dd5cbb-1450-4303-961d-fc3cf1ef2c92